[Event "FIDE World School-ch O-13 2025"]
[Site "Vrnjacka Banja"]
[Date "2025.03.24"]
[Round "5.7"]
[White "Lee, Tsuen Jin Aiesec"]
[Black "Baturin-Vinogradov, Miroslav"]
[Result "0-1"]
[Annotator "NA RC"]
[ECO "C54"]
[WhiteElo "1693"]
[BlackElo "1912"]
[PlyCount "28"]
[EventDate "2025.03.19"]
[EventType "swiss"]
[EventCountry "SRB"]
[SourceTitle "playchess.com"]
[Source "ChessBase"]
[SourceQuality "1"]
[TimeControl "5400+30"]

1. e4 {[%emt 0:00:02]} e5 {[%emt 0:00:10]} 2. Nf3 {[%emt 0:00:18]} Nc6 {[%emt 0:00:14]} 3. Bc4 {[%emt 0:00:10]} Nf6 {[%emt 0:00:16]} 4. d3 {[%emt 0:00:04]} Bc5 {[%emt 0:00:18]} 5. Bg5 {[%emt 0:00:05]} h6 {[%emt 0:01:09]} 6. Bh4 {[%emt 0:00:07]} d6 {[%emt 0:00:23]} 7. c3 {[%emt 0:00:15]} a5 {[%emt 0:00:08]} 8. a3 {[%emt 0:01:02]} Ba7 {[%emt 0:01:39]} 9. b4 {[%emt 0:00:19]} axb4 {[%emt 0:03:00]} 10. axb4 {[%emt 0:01:13]} Bxf2+ {[%emt 0:04:21]} 11. Kxf2 {[%emt 0:00:05]} Rxa1 {[%emt 0:00:17]} 12. Qb3 {[%emt 0:00:58]} Qe7 {[%emt 0:03:49]} 13. b5 {[%emt 0:00:10]} Nd8 {[%emt 0:00:50]} 14. b6 {[%emt 0:02:10]} c6 {[%emt 0:00:44]} 0-1

[Event "FIDE World School-ch O-13 2025"]
[Site "Vrnjacka Banja"]
[Date "2025.03.24"]
[Round "5.8"]
[White "Haresh, Venkata Narayanaswam"]
[Black "You, Eden"]
[Result "1-0"]
[Annotator "TA"]
[ECO "B36"]
[WhiteElo "1824"]
[BlackElo "2083"]
[PlyCount "101"]
[EventDate "2025.03.19"]
[EventType "swiss"]
[EventCountry "SRB"]
[SourceTitle "playchess.com"]
[Source "ChessBase"]
[SourceQuality "1"]
[TimeControl "5400+30"]

{[%evp 13,101,35,35,35,47,28,37,-6,22,20,8,7,18,10,18,6,53,54,54,-55,157,118,144,143,213,141,160,108,95,70,70,73,332,205,263,265,246,176,191,178,329,245,295,279,290,208,412,404,495,558,1410,620,1922,1224,1224,1166,1131,1131,1038,915,896,896,1209,1170,825,816,1131,1027,1592,1479,1685,1665,1536,1406,1915,1603,1759,1633,5118,5110,5106,4133,5206,5206,29987,29988,29988,29988,29987,6091]} 1. e4 {[%emt 0:00:06]} c5 {[%emt 0:00:10]} 2. Nf3 {[%emt 0:00:09]} g6 {[%emt 0:00:10]} 3. d4 {[%emt 0:00:05]} cxd4 {[%emt 0:00:06]} 4. Nxd4 {[%emt 0:00:08]} Nc6 {[%emt 0:00:08]} 5. c4 {[%emt 0:00:07]} Nf6 {[%emt 0:00:39]} 6. Nc3 {[%emt 0:00:05]} Nxd4 {[%emt 0:00:22]} 7. Qxd4 {[%emt 0:00:07]} d6 $1 {[%emt 0:00:08]} 8. Be3 {[%emt 0:00:05] B36: Sicilian: Maroczy Bind: Gurgenidze System.} Bg7 {[%emt 0:00:11]} 9. Qd2 {[%emt 0:00:07]} O-O {[%emt 0:03:37]} 10. Bd3 {[%emt 0:00:07] White is slightly better.} Be6 {[%emt 0:04:39]} 11. O-O {[%emt 0:01:10]} Ng4 {[%emt 0:04:45]} 12. Bf4 {[%emt 0:00:03]} Ne5 $146 {[%emt 0:08:59]} ({Predecessor:} 12... Rc8 13. b3 Re8 14. Rac1 Qa5 15. h3 Ne5 16. Bb1 a6 17. Qe3 b5 18. cxb5 axb5 {1-0 Isha,S (2191)-Jaramillo Lopez,A (2183) Titled Tuesday intern op 24th Oct Early blitz 2023 (9)}) 13. b3 {[%emt 0:00:17]} Qa5 {[%emt 0:09:01] ...Nxd3 is the strong threat.} 14. Rac1 {[%emt 0:00:21]} Rfc8 {[%emt 0:02:23]} (14... Nxd3 $11 {feels stronger.} 15. Qxd3 f5) 15. Be2 $14 {[%emt 0:03:40]} a6 {[%emt 0:05:27]} 16. Bh6 {[%emt 0:12:59] [#]} (16. Bg5 $14) 16... b5 $2 {[%emt 0:09:05]} 17. Bxg7 $16 {[%emt 0:01:27]} (17. cxb5 Bxh6 18. Qxh6 axb5 $11 (18... Rxc3 19. Qd2 $15)) 17... Kxg7 {[%emt 0:00:05]} 18. f4 {[%emt 0:01:31]} (18. cxb5 axb5 19. Qd4 (19. Bxb5 Rc5 $14) 19... b4 $15) 18... Ng4 {[%emt 0:21:04]} (18... Nc6 $16) 19. Bxg4 {[%emt 0:09:24]} (19. cxb5 Qb6+ 20. Kh1 Nf2+ 21. Rxf2 Qxf2 22. bxa6 f6 $11 (22... Rxa6 23. f5 $16)) 19... Bxg4 {[%emt 0:01:25]} 20. f5 {[%emt 0:03:51]} ({White should try} 20. h3 Bd7 21. Qd4+ f6 22. Nd5) 20... bxc4 {[%emt 0:07:17]} 21. h3 {[%emt 0:22:31] The board is on fire.} cxb3 {[%emt 0:06:07]} 22. axb3 {[%emt 0:06:24]} Rc7 $2 {[%emt 0:04:28][%mdl 8192] This costs Black the game.} 23. Qd4+ {[%emt 0:02:00]} f6 {[%emt 0:01:02][%cal Oa8c8]} 24. hxg4 {[%emt 0:13:19]} Rac8 {[%emt 0:00:59]} 25. Ne2 {[%emt 0:02:28]} Rxc1 {[%emt 0:02:05]} 26. Nxc1 {[%emt 0:00:07]} (26. Rxc1 $2 {is the wrong capture.} Rxc1+ 27. Nxc1 Qe1+ 28. Kh2 Qxc1 $17) 26... Qa3 $2 {[%emt 0:00:58]} (26... Rc2 27. g5 Qc5 28. gxf6+ exf6 29. Qxc5 dxc5) 27. Qe3 {[%emt 0:05:51]} Rc2 {[%emt 0:00:28]} 28. Ne2 {[%emt 0:01:12][%cal Bc1e2,Be2f4,Bf4e6][%mdl 32]} Qb2 {[%emt 0:01:23]} 29. Nf4 {[%emt 0:00:43]} g5 $2 {[%emt 0:01:01]} (29... Kg8 {keeps fighting.}) 30. Ne6+ $18 {[%emt 0:00:08]} Kg8 {[%emt 0:00:25]} 31. Qh3 {[%emt 0:03:47]} a5 {[%emt 0:00:39]} 32. Kh1 {[%emt 0:00:08]} (32. Qh6 $142 Rxg2+ 33. Kh1 Rh2+ 34. Qxh2 Qxh2+ 35. Kxh2) 32... Rf2 {[%emt 0:01:30]} 33. Rxf2 {[%emt 0:01:03]} Qxf2 {[%emt 0:00:01]} 34. Qh6 {[%emt 0:01:27][%csl Ge6][%cal Rh6f8]} Qh4+ {[%emt 0:00:08]} 35. Qxh4 {[%emt 0:00:05]} gxh4 {[%emt 0:00:05][%mdl 4096] Endgame KN-KP} 36. Kh2 {[%emt 0:00:05]} Kf7 {[%emt 0:00:09]} 37. Kh3 {[%emt 0:00:07]} Ke8 {[%emt 0:00:05]} 38. Kxh4 {[%emt 0:00:14]} Kd7 {[%emt 0:00:01]} 39. g5 {[%emt 0:01:08]} fxg5+ {[%emt 0:00:16]} 40. Kxg5 {[%emt 0:00:07]} Kc6 {[%emt 0:00:06]} 41. Kh6 {[%emt 0:00:11]} Kb5 {[%emt 0:00:18]} 42. Kxh7 {[%emt 0:00:33] KN-K3P} Kb4 {[%emt 0:00:08]} 43. Nd4 {[%emt 0:00:29]} Kc5 {[%emt 0:00:12]} 44. Nc2 {[%emt 0:00:24]} d5 {[%emt 0:00:15]} 45. g4 {[%emt 0:00:27] and g5 should not be overlooked} d4 {[%emt 0:00:18] [#]} 46. Nxd4 $1 {[%emt 0:00:15]} Kxd4 {[%emt 0:00:03]} 47. g5 {[%emt 0:00:08]} Kc3 {[%emt 0:00:09]} 48. g6 {[%emt 0:00:07]} Kxb3 {[%emt 0:00:04]} 49. g7 {[%emt 0:00:07] White mates.} a4 {[%emt 0:00:04]} 50. g8=Q+ {[%emt 0:00:10]} Kb2 {[%emt 0:00:05]} 51. e5 {[%emt 0:00:14] Weighted Error Value: White=0.57/Black=1.10  Loses game:     	---       	Black=1      Mistake:       	White=3     	Black=5      Inaccurate:     	White=3     	Black=3      OK:         	White=5     	Black=7      Best:        	White=3     	Black=2} (51. Qg7+ $142 Kb3 52. Qf7+ (52. Qxe7 a3 53. f6 a2 54. Qe5 Kc2 55. f7 Kb3 56. f8=Q a1=Q 57. Qxa1 Kc4 58. Qa2+ Kc3 59. Qc5+ Kd3 60. Qac2#) 52... Kb2 53. Qxe7 a3 54. Qb4+ Kc2 55. Qxa3 Kd2 56. f6) 1-0